bitfinex-derivatives/quotes_ETHF0:USTF0_20250524
["timestamp","ask_amount","ask_price","bid_price","bid_amount"]
[1748127890677,3.8902,2525.3,2524.8,18.463]
[1748127890678,0.6824,2525.3,2524.8,18.463]
[1748127890883,17.817,2525.6,2525.4,0.79165]
[1748127891289,17.817,2525.6,2525.5,0.79162]
[1748127891792,18.60858,2525.6,2525.5,0.79162]
[1748127892091,17.817,2525.6,2525.5,0.79162]
[1748127892293,3.12281237,2525.9,2525.4,4.6295]
[1748127892294,0.79154,2525.8,2525.7,0.79155]
[1748127892893,20.15869933,2525.9,2525.4,6.60859]
[1748127893093,2.34069933,2525.9,2525.8,0.79152]
[1748127893491,0.00384448,2525.9,2525.8,0.79152]
[1748127893691,0.00384448,2525.9,2525.8,2.21282]
[1748127894189,0.00384448,2525.9,2525.8,2.91032]
[1748127894394,0.79533448,2525.9,2525.8,1.4213]
[1748127894584,0.00384448,2525.9,2525.8,2.21282]
[1748127894788,0.79533448,2525.9,2525.8,1.4213]
[1748127894982,0.00384448,2525.9,2525.8,2.21282]
[1748127898494,0.79533448,2525.9,2525.8,1.4213]
[1748127900096,2.14993448,2525.9,2525.8,1.4213]
[1748127900389,0.79165,2525.4,2525.3,0.6975]
[1748127900595,0.79165,2525.4,2525.3,1.312]
[1748127900797,0.79157,2525.7,2525.6,0.79158]
[1748127900992,18.60654,2525.8,2525.7,0.79155]
[1748127901197,0.79156,2525.7,2525.6,0.79155]
[1748127901596,0.00384448,2525.9,2525.5,20.04404]
[1748127901792,0.00384448,2525.9,2525.6,1.9933]
[1748127902092,0.00384448,2525.9,2524.1,1.88604625]
[1748127902093,0.79187,2524.7,2524.2,3.2078]
[1748127902398,18.60687,2524.7,2524.2,3.8891]
[1748127902594,0.79209,2524.0,2523.9,3.2078]
[1748127903102,0.79218,2523.7,2523.6,2.30121595]
[1748127903299,0.79218,2523.7,2523.6,0.94481595]
[1748127903593,0.79231,2523.3,2522.9,2.35664678]
[1748127903796,0.79243,2522.9,2522.8,1.3564]
[1748127904106,0.79254,2522.6,2522.4,3.2078]
[1748127904399,0.79262,2522.3,2522.2,1.36234036]
[1748127904795,0.00594036,2522.5,2522.2,1.36234036]
[1748127905001,0.92502611,2522.5,2522.2,1.36234036]
[1748127905197,0.79262,2522.3,2522.2,1.36234036]
[1748127905507,4.00042,2522.3,2522.2,0.00594036]
[1748127905802,4.00042,2522.3,2522.2,3.6e-07]
[1748127906009,0.79306,2520.9,2520.8,3.2078]
[1748127906397,3.2078,2521.3,2520.8,3.2078]
[1748127906799,0.79304,2521.0,2520.8,3.2078]
[1748127907198,0.00594036,2521.2,2520.8,3.2078]
[1748127907607,0.79304,2521.0,2520.8,3.2078]
[1748127907801,0.00594036,2521.2,2521.0,0.79299]
[1748127908100,0.00594036,2521.2,2521.1,3.2078]
[1748127908301,0.79312,2520.7,2520.6,0.00594036]
[1748127908510,0.79302,2521.0,2520.6,0.00594036]
[1748127908700,0.00594036,2521.2,2520.9,3.2078]
[1748127909411,0.79302,2521.0,2520.6,0.00594036]
[1748127909806,0.00594036,2521.2,2520.7,3.2078]
[1748127910103,0.00594036,2521.2,2520.6,3.21374036]
[1748127910307,0.79312,2520.7,2520.6,3.21374036]
[1748127910506,0.79312,2520.7,2520.6,0.00594036]
[1748127910703,3.21374036,2521.2,2520.6,0.00594036]
[1748127910909,3.21374036,2521.2,2520.6,3.21374036]
[1748127911508,3.21374036,2521.2,2520.7,0.7931]
[1748127911808,0.79312,2520.7,2520.6,0.00594036]
[1748127912203,0.79302,2521.0,2520.6,0.00594036]
[1748127912499,1.3365,2521.1,2520.6,0.00594036]
[1748127912702,0.79307,2520.9,2520.6,0.00594036]
[1748127913013,3.21374036,2521.2,2520.6,0.00594036]
[1748127913797,0.79309,2520.8,2520.6,0.00594036]
[1748127914001,0.79307,2520.9,2520.6,0.00594036]
[1748127914502,0.79306,2520.9,2520.6,0.00594036]
[1748127914900,3.21374036,2521.2,2520.8,3.2078]
[1748127915106,0.00594036,2521.2,2520.9,18.087]
[1748127915513,0.79891036,2521.2,2520.9,18.087]
[1748127915708,0.79312,2520.7,2520.6,0.00594036]
[1748127916104,5.79312,2520.7,2520.6,3.6e-07]
[1748127916817,0.79312,2520.7,2520.6,3.6e-07]
[1748127918616,3.21374036,2521.2,2520.6,3.20780036]
[1748127918811,0.79311,2520.7,2520.6,3.6e-07]
[1748127920211,3.21374036,2521.2,2520.6,8.20780036]
[1748127920417,0.79308,2520.8,2520.7,20.3955]
[1748127920821,0.79308,2520.8,2520.7,25.3955]
[1748127921112,3.21374036,2521.2,2520.7,25.3955]
[1748127921317,0.79305,2520.9,2520.8,1.3322]
[1748127921915,0.00594036,2521.2,2520.8,1.3322]
[1748127921916,0.00594036,2521.2,2520.8,6.3322]
[1748127922217,0.79301,2521.0,2520.9,3.2078]
[1748127923918,0.79301,2521.0,2520.9,22.2008]
[1748127924519,1.98252,2521.1,2520.6,3.20780036]
[1748127924721,0.79311,2520.7,2520.6,3.20780036]
[1748127925317,0.79311,2520.7,2520.6,3.6e-07]
[1748127928918,5.19615036,2521.2,2520.6,3.6e-07]
[1748127929123,0.79311,2520.7,2520.6,3.6e-07]
[1748127929525,0.7931,2520.8,2520.6,3.6e-07]
[1748127929827,0.79311,2520.7,2520.6,3.6e-07]
[1748127930120,0.00594036,2521.2,2520.6,3.6e-07]
[1748127930322,0.00594036,2521.2,2520.8,3.2078]
[1748127930622,0.79890036,2521.2,2521.1,3.2078]
[1748127930824,0.79299,2521.1,2521.0,18.996]
[1748127932522,0.79299,2521.1,2520.8,3.2078]
[1748127932728,0.79301,2521.1,2520.8,22.99686]
[1748127933027,0.79302,2521.0,2520.8,22.2038]
[1748127933223,0.92670581,2521.1,2520.9,0.79305]
[1748127933429,1.71969581,2521.1,2520.9,0.681]
[1748127933629,1.71969581,2521.1,2520.9,6.47403]
[1748127933825,0.92670581,2521.1,2520.9,1.47403]
[1748127934024,0.92670581,2521.1,2521.0,0.79302]
[1748127934230,0.00594036,2521.2,2521.0,0.79302]
[1748127934526,0.79308,2520.8,2520.7,3.2078]
[1748127934728,0.79307,2520.9,2520.7,3.2078]
[1748127935324,0.92720902,2520.8,2520.7,3.2078]
[1748127935523,0.92720902,2520.8,2520.7,4.00091]
[1748127935727,0.79311,2520.7,2520.6,3.6e-07]
[1748127935928,1.72031902,2520.8,2520.6,3.20780036]
[1748127936426,0.92720902,2520.7,2520.6,3.20780036]
[1748127937228,1.72031902,2520.7,2520.6,3.20780036]
[1748127937425,1.72031902,2520.7,2520.6,3.6e-07]
[1748127938429,4.83928691,2520.7,2520.6,3.6e-07]
[1748127938831,9.83928691,2520.7,2520.6,3.6e-07]
[1748127939428,4.83928691,2520.7,2520.6,3.6e-07]
[1748127939730,27.68728691,2520.7,2520.6,3.6e-07]
[1748127940824,4.83928691,2520.7,2520.6,3.6e-07]
[1748127941025,4.04617691,2520.7,2520.6,3.6e-07]
[1748127941232,4.04617691,2520.7,2520.6,0.79315036]
[1748127941432,3.27347968,2520.7,2520.6,0.79315036]
[1748127942725,2.34627066,2521.0,2520.7,0.7931]
[1748127942929,0.79305,2520.9,2520.8,1.2982]
[1748127943124,2.34627066,2521.0,2520.9,0.79305]
[1748127943634,2.34627066,2521.0,2520.9,5.79305]
[1748127944131,0.00594036,2521.2,2521.1,0.79299]
[1748127944332,2.34627066,2521.4,2521.3,0.79293]
[1748127944539,3.11896789,2521.8,2521.7,0.7928]
[1748127944730,3.11896789,2521.8,2521.7,22.9986]
[1748127944929,19.4621,2522.4,2522.0,0.7927]
[1748127945229,3.2078,2522.5,2522.1,1.2982]
[1748127945431,3.12490825,2522.6,2522.3,3.2078]
[1748127945638,3.12490825,2522.6,2522.4,2.12486]
[1748127945934,3.12490825,2522.6,2522.4,1.3323]
[1748127946238,0.00594036,2522.6,2522.5,0.79255]
[1748127946441,2.18256036,2522.6,2522.4,2.12487]
[1748127946633,1.39004036,2522.6,2522.4,1.3323]
[1748127947738,2.18258036,2522.6,2522.4,2.12486]
[1748127947938,2.18257036,2522.6,2522.4,2.12486]
[1748127948134,1.39004036,2522.6,2522.4,1.3323]
[1748127948339,0.00594036,2522.6,2522.5,0.79255]
[1748127948636,0.00594036,2522.6,2522.0,22.21174036]
[1748127948837,0.79268,2522.1,2522.0,0.00594036]
[1748127950634,1.2818,2522.3,2522.0,0.00594036]
[1748127950835,2.07442,2522.3,2522.2,0.79264]
[1748127951041,0.00594036,2522.6,2522.2,3.2078]
[1748127951228,0.79847036,2522.6,2522.3,1.3818]
[1748127951433,0.79847036,2522.6,2522.3,20.0708]
[1748127951633,0.00594036,2522.6,2522.5,0.79255]
[1748127952040,0.00594036,2522.6,2522.5,4.00035]
[1748127952541,21.0508,2523.3,2522.6,1.98129]
[1748127952842,22.4541,2523.3,2522.9,0.79241]
[1748127953033,1.98084,2523.2,2522.8,3.2078]
[1748127953339,1.98084,2523.2,2522.7,18.688]
[1748127953340,0.7924,2523.0,2522.9,0.79241]
[1748127953535,1.4033,2523.1,2522.7,1.3327]
[1748127953735,0.79237,2523.1,2522.9,0.7924]
[1748127953937,0.79236,2523.1,2523.0,1.3327]
[1748127954436,0.79249,2522.8,2522.6,4.65811]
[1748127954643,1.2929,2523.0,2522.7,20.1059]
[1748127954940,0.79242,2522.9,2522.8,1.4179]
[1748127956940,1.2929,2523.0,2522.0,1.98768036]
[1748127956941,0.79252,2522.6,2522.5,18.685]
[1748127957138,0.79257,2522.5,2522.4,0.79256]
[1748127957337,1.2929,2522.8,2522.5,0.79253]
[1748127957540,0.7925,2522.7,2522.6,2.20801]
[1748127957740,0.7925,2522.7,2522.6,1.4155]
[1748127958242,0.7925,2522.7,2522.6,2.20802]
[1748127958544,0.7925,2522.7,2522.6,1.4155]
[1748127958739,0.7925,2522.7,2522.6,2.20802]
[1748127958941,0.79248,2522.8,2522.7,0.79249]
[1748127959140,0.79248,2522.8,2522.7,1.4155]
[1748127959340,2.18944,2522.9,2522.7,1.4155]
[1748127959542,1.397,2522.9,2522.8,0.79246]
[1748127960645,18.63038,2523.1,2523.0,0.7924]
[1748127961345,22.838,2523.1,2522.7,1.4155]
[1748127961553,0.79258,2522.4,2522.3,21.8908]
[1748127962243,0.79258,2522.4,2522.3,22.68342]
[1748127962457,2.17808,2522.5,2522.4,0.79259]
[1748127962748,2.17808,2522.5,2522.4,2.19269]
[1748127963051,0.79258,2522.5,2522.4,2.19269]
[1748127963543,21.05174036,2523.2,2522.4,1.4001]
[1748127963845,18.63631036,2523.2,2523.1,0.79237]
[1748127964151,0.79239,2523.1,2523.0,0.79238]
[1748127964351,0.79243,2523.0,2522.9,2.1693]
[1748127964550,1.3624,2523.1,2523.0,0.7924]
[1748127965047,2.15476,2523.1,2523.0,0.7924]
[1748127965552,0.79236,2523.1,2523.0,0.7924]
[1748127966451,0.7924,2523.0,2522.9,2.16932]
[1748127967244,0.7924,2523.0,2522.9,1.3769]
[1748127967444,0.79254,2522.6,2522.5,0.79253]
[1748127967849,0.79251,2522.7,2522.6,0.7925]
[1748127968454,0.79255,2522.6,2522.5,0.79253]
[1748127968752,0.79248,2522.8,2522.7,0.79249]
[1748127968954,2.09348,2522.8,2522.5,1.3168]
[1748127969453,0.305,2523.1,2523.0,0.7924]
[1748127969641,2.18101,2523.0,2522.8,0.79245]
[1748127969846,1.3886,2523.0,2522.9,0.79243]
[1748127970452,2.181,2523.0,2522.9,0.79243]
[1748127970953,1.3886,2523.0,2522.9,0.79243]
[1748127971150,2.181,2523.0,2522.9,0.79243]
[1748127971349,1.3886,2523.0,2522.9,0.79243]
[1748127971956,2.18102,2523.0,2522.8,0.79244]
[1748127972158,1.3886,2523.0,2522.7,1.3553]
[1748127972347,1.3886,2523.0,2522.8,0.79243]
[1748127972548,1.3886,2523.0,2522.9,0.79243]
[1748127972755,20.017,2523.0,2522.9,0.79243]
[1748127972959,20.017,2523.0,2522.7,1.3553]
[1748127972960,20.017,2523.0,2522.8,0.79244]
[1748127973250,19.2246,2523.0,2522.7,1.3553]
[1748127973442,0.79243,2522.9,2522.7,2.14777]
[1748127973647,0.79243,2522.9,2522.8,1.3743]
[1748127973848,2.08443,2522.9,2522.8,1.3743]
[1748127974360,0.79262,2522.3,2522.2,3.2078]
[1748127974659,18.62861,2522.4,2521.9,1.3743]
[1748127974849,17.836,2522.4,2521.9,1.3743]
[1748127975056,17.836,2522.5,2522.0,3.21374036]
[1748127975353,2.33502533,2522.4,2522.1,1.3743]
[1748127975550,2.33502533,2522.4,2522.2,19.3688]
[1748127975749,2.33502533,2522.4,2522.3,1.3341]
[1748127976049,3.12760533,2522.4,2522.3,1.3341]
[1748127976450,22.25752533,2522.7,2522.3,1.3341]
[1748127976746,0.79256,2522.5,2522.3,1.3341]
[1748127976950,0.79256,2522.5,2522.3,20.0161]
[1748127977351,23.44627533,2522.7,2522.3,20.0161]
[1748127977551,0.79259,2522.4,2522.3,20.0161]
[1748127977860,0.79258,2522.5,2522.3,20.0161]
[1748127978266,0.79259,2522.4,2522.3,1.3341]
[1748127978452,2.09189,2522.4,2522.3,1.3341]
[1748127979162,4.00034,2522.6,2522.3,1.3341]
[1748127979367,0.79259,2522.4,2522.3,1.3341]
[1748127980564,3.2078,2522.6,2522.3,1.3341]
[1748127980765,0.79259,2522.4,2522.3,1.3341]
[1748127980969,3.12761533,2522.4,2522.3,1.3341]
[1748127981677,0.79259,2522.4,2522.3,1.3341]
[1748127982973,2.33502533,2522.6,2522.3,10.33451]
[1748127983174,0.79257,2522.5,2522.4,0.6742]
[1748127983369,3.12756533,2522.6,2522.4,2.7109]
[1748127983569,3.12756533,2522.6,2522.4,3.50348]
[1748127983874,0.79256,2522.5,2522.4,2.7109]
[1748127986871,0.79256,2522.5,2522.4,21.0639]
[1748127987271,0.79256,2522.5,2522.0,4.00645036]
[1748127987272,0.79268,2522.1,2522.0,0.00594036]
[1748127987577,0.79275,2521.9,2521.8,0.10915221]
[1748127987875,1.98198,2521.8,2521.4,3.2078]
[1748127988067,0.79287,2521.5,2521.4,3.2078]
[1748127988269,0.79287,2521.5,2521.4,2.36318]
[1748127988468,0.79287,2521.5,2520.9,0.6465]
[1748127988469,0.79303,2521.0,2520.9,18.353]
[1748127988671,0.79306,2520.9,2520.8,1.40293427]
[1748127990076,0.79309,2520.8,2520.7,0.00594036]
[1748127990475,18.63009,2520.8,2520.7,0.00594036]
[1748127991076,21.83789,2520.8,2520.7,0.00594036]
[1748127991379,21.84189,2520.8,2520.7,0.00594036]
[1748127991776,4.00089,2520.8,2520.7,0.00594036]
[1748127992181,3.2078,2520.8,2520.7,19.15606036]
[1748127992376,0.00594036,2521.2,2520.7,21.57074036]
[1748127992679,0.00594036,2521.2,2521.1,0.793]
[1748127992882,0.00594036,2521.2,2521.1,19.15]
[1748127993179,0.00594036,2521.2,2521.1,21.1026]
[1748127996475,0.00594036,2521.2,2521.1,26.1026]
[1748127997483,0.00594036,2521.2,2521.1,21.1026]
[1748127997675,0.79891036,2521.2,2521.1,20.3096]
[1748127997880,0.00594036,2521.2,2521.1,21.1026]
[1748128002691,23.40409931,2522.1,2522.0,0.79271]
[1748128002883,6.35277931,2522.1,2522.0,0.79271]
[1748128003084,5.56009931,2522.1,2522.0,0.79271]
[1748128004081,3.2078,2522.1,2522.0,0.79271]
[1748128004487,0.00594036,2522.3,2522.2,0.79265]
[1748128004786,0.00594036,2522.3,2522.2,19.15265]
[1748128005792,2.17806036,2522.3,2522.2,18.36]
[1748128005992,2.17806036,2522.3,2522.2,19.15265]
[1748128006192,1.38544036,2522.3,2522.2,0.79265]
[1748128006395,2.17806036,2522.3,2522.2,0.79265]
[1748128006694,1.38544036,2522.3,2522.2,0.79265]
[1748128007087,1.38544036,2522.3,2522.1,18.358]
[1748128007292,0.79265,2522.2,2522.1,18.358]
[1748128007489,0.79268,2522.1,2522.0,0.00594036]
[1748128007689,0.79268,2522.1,2521.0,1.40293427]
[1748128007690,0.79293,2521.4,2521.2,3.8959]
[1748128007890,1.98187,2521.9,2521.2,3.8959]
[1748128007891,5.18967,2521.9,2521.2,3.8959]
[1748128008198,19.9571,2521.8,2521.6,0.79282]
[1748128008694,19.95709,2521.8,2521.7,0.79281]
[1748128008894,19.95709,2521.8,2521.4,1.98819036]
[1748128009096,19.95709,2521.8,2521.7,0.79281]
[1748128009296,2.11409,2521.8,2521.7,0.79281]
[1748128009500,2.1141,2521.8,2521.5,19.6502]
[1748128009685,2.11409,2521.8,2521.7,0.79281]
[1748128010197,0.79282,2521.7,2521.6,0.79282]
[1748128010398,0.79282,2521.7,2521.6,0.79284]
[1748128010399,1.3117,2521.7,2521.6,0.79284]
[1748128010900,0.7927,2522.1,2522.0,0.79269]
[1748128011101,2.1044,2522.1,2522.0,0.79269]
[1748128011305,0.79272,2522.0,2521.9,0.79272]
[1748128011599,2.10442,2522.0,2521.9,0.79272]
[1748128011799,1.3117,2522.0,2521.9,0.79272]
[1748128012002,2.10441,2522.0,2521.9,0.79272]
[1748128012395,0.79275,2521.9,2521.8,2.16515]
[1748128012802,2.10444,2522.0,2521.9,0.79275]
[1748128013303,0.79284,2521.7,2521.6,0.79283]
[1748128013602,0.79284,2521.6,2521.5,4.00066]
[1748128013804,2.10444,2522.0,2521.5,4.00064]
[1748128014004,2.10444,2522.0,2521.5,5.38254]
[1748128014307,0.7928,2521.8,2521.7,0.7928]
[1748128014500,0.7928,2521.8,2521.5,4.5897]
[1748128014501,0.79277,2521.9,2521.8,0.79276]
[1748128014803,0.7928,2521.8,2521.7,0.79279]
[1748128015102,0.79283,2521.7,2521.6,0.79282]
[1748128015306,2.10423,2521.7,2521.6,0.79282]
[1748128016106,1.3114,2521.7,2521.6,0.79282]
[1748128016296,6.89049931,2522.2,2522.1,0.79268]
[1748128016605,4.32289931,2522.2,2522.1,0.79268]
[1748128017002,0.79273,2522.0,2521.9,0.79272]
[1748128017197,1.9706,2522.2,2521.8,18.192]
[1748128017402,0.79271,2522.0,2521.9,2.09333]
[1748128017599,1.9706,2522.2,2522.1,0.79268]
[1748128017802,1.9706,2522.2,2521.4,0.00594036]
[1748128017803,0.79282,2521.7,2521.6,0.79281]
[1748128018107,0.79279,2521.8,2521.7,0.79278]
[1748128018309,2.13487,2521.9,2521.8,0.79278]
[1748128018604,1.3421,2521.9,2521.8,0.79278]
[1748128018803,0.79278,2521.8,2521.7,0.7928]
[1748128021403,1.3421,2521.9,2521.5,3.40187]
[1748128021705,2.35229931,2522.0,2521.9,0.79275]
[1748128022106,1.55763931,2522.0,2521.9,0.79275]
[1748128022307,0.00594036,2522.3,2522.2,0.79265]
[1748128022502,0.00594036,2522.3,2522.2,4.00045]
[1748128023100,3.11896789,2522.7,2522.6,0.79253]
[1748128023406,1.98063,2523.5,2522.6,0.79253]
[1748128023407,25.50340921,2523.9,2523.5,0.79224]
[1748128023606,1.37,2523.6,2523.5,0.79223]
[1748128023814,17.842,2523.9,2523.7,0.79218]
[1748128024103,21.05574036,2524.0,2523.5,0.00594036]
[1748128024308,3.2078,2523.6,2523.5,0.00594036]
[1748128024513,4.00001,2523.6,2523.5,0.00594036]
[1748128024705,3.2078,2523.6,2523.5,0.00594036]
[1748128025105,4.00001,2523.6,2523.5,0.00594036]
[1748128025307,5.31691,2523.6,2523.5,0.00594036]
[1748128026315,4.5247,2523.6,2523.5,0.79818036]
[1748128026608,4.5247,2523.6,2523.5,2.12068036]
[1748128027314,5.31691,2523.6,2523.5,1.32844036]
[1748128027503,1.3169,2523.6,2523.5,2.12068036]
[1748128028011,6.34630339,2523.8,2523.7,0.79218]
[1748128028410,8.44205339,2523.8,2523.6,0.79219]
[1748128028910,0.79221,2523.6,2523.5,1.32844036]
[1748128029114,0.79221,2523.6,2523.5,0.00594036]
[1748128029616,2.09581,2523.6,2523.5,0.00594036]
[1748128030416,2.09581,2523.6,2523.5,0.79818036]
[1748128031610,1.3036,2523.6,2523.5,0.79818036]
[1748128031816,24.18130339,2523.8,2523.7,0.79218]
[1748128032417,24.97345339,2523.8,2523.7,0.79218]
[1748128032719,6.34630339,2523.8,2523.7,0.79218]
[1748128033218,4.00583036,2524.0,2523.9,0.79212]
[1748128033419,0.79212,2523.9,2523.8,18.183]
[1748128033620,2.14972,2523.9,2523.8,18.183]
[1748128033921,2.14972,2523.9,2523.8,18.97515]
[1748128033922,1.3576,2523.9,2523.8,18.97515]
[1748128034111,3.21374036,2524.0,2523.9,0.79212]
[1748128034112,0.00594036,2524.0,2523.9,0.79212]
[1748128034417,0.00594036,2524.0,2523.9,2.10282]
[1748128035414,0.79803036,2524.0,2523.9,2.10282]
[1748128036609,0.00594036,2524.0,2523.9,2.10282]
[1748128040216,0.00594036,2524.0,2523.7,21.3878]
[1748128040217,3.21374036,2524.0,2523.7,18.18]
[1748128040413,1.3046,2523.9,2523.8,0.79215]
[1748128040814,1.3046,2523.9,2523.8,2.18275]
[1748128043020,0.00594036,2524.0,2523.9,0.79212]
[1748128043319,0.00594036,2524.0,2523.9,2.10722]
[1748128045723,0.00594036,2524.0,2523.9,0.79212]
[1748128046025,0.00594036,2524.0,2523.9,18.72112]
[1748128046221,0.00594036,2524.0,2523.9,20.06492]
[1748128046819,1.34494036,2524.0,2523.9,18.72112]
[1748128049527,2.13703036,2524.0,2523.9,17.929]
[1748128049827,0.79212,2523.9,2523.8,0.79213]
[1748128050121,2.15242,2523.9,2523.8,0.79213]
[1748128050325,1.3603,2523.9,2523.8,0.79213]
[1748128050630,2.15242,2523.9,2523.8,0.79213]
[1748128051223,1.3603,2523.9,2523.8,0.79213]
[1748128051425,2.15242,2523.9,2523.8,0.79213]
[1748128052621,1.3603,2523.9,2523.8,0.79213]
[1748128053326,0.00594036,2524.0,2523.9,0.79212]
[1748128053524,1.40244036,2524.0,2523.9,0.79212]
[1748128054426,2.19453036,2524.0,2523.9,0.79212]
[1748128054724,0.00594036,2524.0,2523.9,0.79212]
[1748128055826,0.00594036,2524.0,2523.9,2.11112]
[1748128058628,0.79215,2523.8,2523.7,0.71595128]
[1748128059029,5.79215,2523.8,2523.7,0.71595128]
[1748128059231,7.14915,2523.8,2523.7,0.71595128]
[1748128059532,2.14915,2523.8,2523.7,0.71595128]
[1748128059729,3.69315636,2523.8,2523.5,0.79816036]
[1748128059933,0.79221,2523.6,2523.5,0.79816036]
[1748128060535,0.79221,2523.6,2523.5,0.00594036]
[1748128061038,0.79221,2523.6,2523.5,0.79818036]
[1748128062632,5.79221,2523.6,2523.5,0.00594036]
[1748128063236,7.74191,2523.6,2523.5,0.00594036]
[1748128065337,2.74191,2523.6,2523.5,0.00594036]
[1748128065739,2.74191,2523.6,2523.5,0.79818036]
[1748128066040,2.74191,2523.6,2523.5,0.00594036]
[1748128066435,2.74191,2523.6,2523.5,0.79818036]
[1748128066635,20.57191,2523.6,2523.5,0.79818036]
[1748128067040,3.2078,2523.7,2523.6,0.79221]
[1748128067341,2.33615636,2523.8,2523.7,0.79218]
[1748128067546,2.33615636,2523.8,2523.7,1.44258]
[1748128068744,0.00594036,2524.0,2523.9,0.79212]
[1748128068949,0.00594036,2524.0,2523.9,18.72212]
[1748128071448,0.00594036,2524.0,2523.9,21.92992]
[1748128073444,0.00594036,2524.0,2523.9,18.72212]
[1748128073948,5.54395636,2524.6,2524.5,0.79193]
[1748128074546,5.54395636,2524.6,2524.5,2.14753]
[1748128074751,2.33615636,2524.6,2524.5,5.35533]
[1748128075152,0.00594036,2524.8,2524.7,0.79187]
[1748128081759,0.7919,2524.6,2524.5,20.7658]
[1748128081959,1.3015,2524.7,2524.6,0.7919]
[1748128082649,0.00594036,2524.8,2524.7,0.79187]
[1748128085255,0.00594036,2524.8,2524.7,18.34987]
[1748128085957,0.00594036,2524.8,2524.6,2.11688]
[1748128086259,0.79780036,2524.8,2524.7,0.79187]
[1748128086458,0.00594036,2524.8,2524.5,1.4028]
[1748128086652,4.5873,2524.7,2524.4,18.2681]
[1748128086953,4.5873,2524.7,2524.6,0.7919]
[1748128087458,4.5873,2524.7,2524.5,2.19471]
[1748128087655,0.7919,2524.6,2524.4,18.2681]
[1748128087859,0.7919,2524.6,2524.5,0.79193]
[1748128088357,0.79193,2524.5,2524.4,0.79194]
[1748128088962,0.79192,2524.6,2524.5,0.7919]
[1748128089165,3.99969,2524.7,2524.6,0.7919]
[1748128089664,18.47514036,2524.8,2524.7,0.79187]
[1748128089863,17.82794036,2524.8,2524.7,0.79187]
[1748128090161,17.82794036,2524.8,2524.7,18.34887]
[1748128090352,0.00594036,2524.8,2524.7,18.34887]
[1748128090553,0.00594036,2524.8,2524.7,21.55667]
[1748128091363,17.822,2525.4,2525.3,0.79168]
[1748128091664,0.6788,2525.6,2525.4,0.79165]
[1748128091859,0.6788,2525.6,2525.5,0.79162]
[1748128092059,18.5008,2525.6,2525.2,1.34]
[1748128092258,19.29239,2525.6,2525.2,3.31926]
[1748128092460,19.29239,2525.6,2525.4,0.79163]
[1748128092461,0.79164,2525.5,2525.4,0.79163]
[1748128092660,19.2924,2525.6,2525.5,0.79162]
[1748128092962,0.79164,2525.5,2525.4,0.79163]
[1748128093163,18.5008,2525.6,2525.3,0.79167]
[1748128093164,0.79168,2525.4,2525.3,0.79167]
[1748128093462,22.50021,2525.6,2525.5,0.79162]
[1748128093663,22.50021,2525.6,2525.2,3.31927]
[1748128093865,0.79162,2525.5,2525.4,0.79163]
[1748128094059,21.7086,2525.6,2525.1,17.56294036]
[1748128094254,3.8866,2525.6,2525.1,17.56294036]
[1748128094454,0.67084412,2525.7,2525.3,5.187]
[1748128094665,0.67084412,2525.7,2525.6,0.79158]
[1748128094963,0.67084412,2525.7,2525.1,0.00594036]
[1748128095263,0.79162,2525.5,2525.4,18.34765]
[1748128095452,0.79162,2525.5,2525.2,0.79169]
[1748128095453,1.97905,2525.5,2525.2,0.79169]
[1748128095658,0.79165,2525.4,2525.3,17.556]
[1748128096562,0.79171,2525.2,2525.1,0.00594036]
[1748128097066,0.7919,2524.6,2524.5,1.50787128]
[1748128097260,0.7919,2524.6,2524.5,0.71595128]
[1748128097459,5.7919,2524.6,2524.5,0.71595128]
[1748128097659,6.4899,2524.6,2524.5,0.71595128]
[1748128098365,0.79196,2524.4,2524.3,0.00594036]
[1748128098866,0.79215,2523.8,2523.7,3.2078]
[1748128099172,0.79224,2523.5,2523.0,18.256]
[1748128099467,3.2078,2523.5,2522.8,1.3357]
[1748128099762,0.79246,2522.8,2522.7,0.71595128]
[1748128099955,18.61446,2522.8,2522.7,0.71595128]
[1748128100154,0.79253,2522.6,2522.5,0.96142546]
[1748128100359,26.0298,2522.8,2522.1,1.88604625]
[1748128100360,0.7,2522.7,2522.1,1.88604625]
[1748128100668,0.79275,2521.9,2521.2,3.2078]
[1748128100867,21.82255,2521.9,2521.2,3.2078]
[1748128101066,26.82255,2521.9,2521.2,4.00076]
[1748128101361,26.0298,2521.9,2521.0,0.79303]
[1748128101563,3.2078,2521.4,2520.9,20.7638]
[1748128101758,3.2078,2521.4,2521.2,0.79295]
[1748128102063,17.829,2521.9,2521.3,20.7718]
[1748128102258,3.2078,2521.7,2521.3,17.564]
[1748128102564,0.00594036,2521.8,2521.7,0.79281]
[1748128103070,0.00594036,2521.8,2521.7,18.43381]
[1748128103564,2.33615636,2522.3,2522.2,0.79265]
[1748128103767,3.2078,2522.8,2522.2,17.641]
[1748128104160,0.79256,2522.5,2522.2,17.641]
[1748128104360,0.79252,2522.7,2522.2,18.43362]
[1748128104565,0.00594036,2522.7,2522.4,0.79257]
[1748128104864,0.00594036,2522.7,2522.5,1.3249]
[1748128105367,0.00594036,2522.7,2522.6,21.64333]
[1748128105865,0.00594036,2522.7,2522.5,1.3249]
[1748128106070,0.00594036,2522.7,2521.4,17.643]
[1748128106071,3.2078,2522.6,2521.4,17.643]
[1748128106261,3.2078,2522.3,2521.7,3.2078]
[1748128106461,0.79269,2522.1,2521.7,3.2078]
[1748128106763,0.79267,2522.2,2521.8,1.3644]
[1748128106963,0.79268,2522.1,2521.8,1.3644]
[1748128107167,0.7927,2522.1,2521.8,1.3644]
[1748128107467,3.2078,2522.0,2521.8,1.3644]
[1748128107667,4.5854,2522.0,2521.8,1.3644]
[1748128107968,4.5854,2522.0,2521.4,17.643]
[1748128108175,4.5854,2522.0,2521.4,19.80029]
[1748128108176,0.79277,2521.9,2521.4,19.80029]
[1748128108470,2.17038,2521.8,2521.4,19.80029]